[Event "Kupreichik Memorial Open 2018"]
[Site "Minsk"]
[Date "2018.06.23"]
[Round "9"]
[White "Mialik, Artsiom"]
[Black "Uzlavataya, Anhelina"]
[Result "0-1"]
[ECO "A04"]
[WhiteElo "1432"]
[BlackElo "1925"]
[Annotator "NA"]
[PlyCount "33"]
[EventDate "2018.06.21"]
[EventCountry "BLR"]
[SourceTitle "playchess.com"]
[Source "ChessBase"]
[SourceQuality "1"]
[TimeControl "900+10"]

1. Nf3 {[%emt 0:00:00]} f5 {[%emt 0:00:02]} 2. d4 {[%emt 0:00:00]} Nf6 {[%emt 0:00:01]} 3. c4 {[%emt 0:00:00]} g6 {[%emt 0:00:02]} 4. Nc3 {[%emt 0:00:01]} Bg7 {[%emt 0:00:01]} 5. Bf4 {[%emt 0:00:16]} O-O {[%emt 0:00:05]} 6. e3 {[%emt 0:00:28]} d6 {[%emt 0:00:02]} 7. Bd3 {[%emt 0:00:10]} a6 {[%emt 0:00:11]} 8. Qc2 {[%emt 0:00:30]} Qe8 {[%emt 0:01:03]} 9. h3 {[%emt 0:00:30]} Nc6 {[%emt 0:00:35]} 10. Be2 {[%emt 0:00:27]} e5 {[%emt 0:00:12]} 11. dxe5 {[%emt 0:00:06]} dxe5 {[%emt 0:00:01]} 12. Bh2 {[%emt 0:00:18]} h6 {[%emt 0:01:15]} 13. Nh4 {[%emt 0:03:40]} Kh7 {[%emt 0:02:19]} 14. Rg1 {[%emt 0:01:43]} Qe7 {[%emt 0:00:47]} 15. g4 {[%emt 0:01:41]} Nb4 {[%emt 0:00:58]} 16. Qb1 {[%emt 0:01:54]} Ne4 17. gxf5 0-1

[Event "Kupreichik Memorial Open 2018"]
[Site "Minsk"]
[Date "2018.06.23"]
[Round "10"]
[White "Badelka, Olga"]
[Black "Rakhmangulova, Anastasiya"]
[Result "1-0"]
[ECO "A36"]
[WhiteElo "2407"]
[BlackElo "2244"]
[Annotator "NA"]
[PlyCount "55"]
[EventDate "2018.06.21"]
[EventCountry "BLR"]
[SourceTitle "playchess.com"]
[Source "ChessBase"]
[SourceQuality "1"]
[TimeControl "900+10"]

1. c4 {[%emt 0:00:00]} c5 {[%emt 0:00:02]} 2. Nc3 {[%emt 0:00:00]} Nc6 {[%emt 0:00:01]} 3. g3 {[%emt 0:00:00]} g6 {[%emt 0:00:02]} 4. Bg2 {[%emt 0:00:00]} Bg7 {[%emt 0:00:00]} 5. d3 {[%emt 0:00:00]} Nh6 {[%emt 0:00:13]} 6. e4 {[%emt 0:00:42]} d6 {[%emt 0:00:09]} 7. Nge2 {[%emt 0:00:05]} Ng4 {[%emt 0:00:48]} 8. h3 {[%emt 0:00:19]} Nf6 {[%emt 0:00:29]} 9. O-O {[%emt 0:00:06]} Bd7 {[%emt 0:00:11]} 10. Be3 {[%emt 0:00:10]} Qc8 {[%emt 0:01:07]} 11. g4 {[%emt 0:01:44]} h5 {[%emt 0:01:42]} 12. g5 {[%emt 0:00:21]} Nh7 {[%emt 0:00:03]} 13. Kh2 {[%emt 0:00:23]} Nd4 {[%emt 0:00:56]} 14. f4 {[%emt 0:00:14]} Nxe2 {[%emt 0:03:15]} 15. Qxe2 {[%emt 0:00:08]} Nf8 {[%emt 0:03:44]} 16. Nd5 {[%emt 0:00:45]} e6 {[%emt 0:00:23]} 17. Nf6+ {[%emt 0:00:15]} Bxf6 {[%emt 0:00:17]} 18. gxf6 {[%emt 0:00:01]} e5 {[%emt 0:00:05]} 19. f5 {[%emt 0:01:28]} gxf5 {[%emt 0:01:00]} 20. exf5 {[%emt 0:00:01]} Bc6 {[%emt 0:00:53]} 21. Bxc5 {[%emt 0:04:20]} Bxg2 {[%emt 0:01:01]} 22. Bxd6 {[%emt 0:00:01]} Bxf1 {[%emt 0:00:39]} 23. Qxe5+ {[%emt 0:00:01]} Ne6 {[%emt 0:00:48]} 24. Rxf1 {[%emt 0:00:11]} Rg8 {[%emt 0:01:08]} 25. fxe6 {[%emt 0:00:08]} Qc6 {[%emt 0:00:09]} 26. exf7+ Kxf7 {[%emt 0:00:01]} 27. Qe7+ {[%emt 0:00:34]} Kg6 {[%emt 0:00:20]} 28. Rg1+ {[%emt 0:00:01]} 1-0

[Event "Kupreichik Memorial Open 2018"]
[Site "Minsk"]
[Date "2018.06.23"]
[Round "10"]
[White "Barskij, Vladimir"]
[Black "Laptii, Nazar"]
[Result "1/2-1/2"]
[ECO "B01"]
[WhiteElo "2389"]
[BlackElo "1925"]
[Annotator "NA"]
[PlyCount "142"]
[EventDate "2018.06.21"]
[EventCountry "BLR"]
[SourceTitle "playchess.com"]
[Source "ChessBase"]
[SourceQuality "1"]
[TimeControl "900+10"]

1. e4 {[%emt 0:00:00]} d5 {[%emt 0:00:01]} 2. exd5 {[%emt 0:00:00]} Nf6 {[%emt 0:00:01]} 3. d4 {[%emt 0:00:13]} Nxd5 {[%emt 0:00:02]} 4. c4 {[%emt 0:00:06]} Nb6 {[%emt 0:00:01]} 5. Nc3 {[%emt 0:00:10]} e5 {[%emt 0:00:02]} 6. dxe5 {[%emt 0:01:41]} Qxd1+ {[%emt 0:00:04]} 7. Nxd1 {[%emt 0:00:03]} Nc6 {[%emt 0:00:08]} 8. Nf3 {[%emt 0:00:27]} Be6 {[%emt 0:04:58]} 9. Ne3 {[%emt 0:01:17]} O-O-O {[%emt 0:00:37]} 10. Bd2 {[%emt 0:00:20]} Bc5 11. b3 {[%emt 0:01:13]} Rhe8 {[%emt 0:03:28]} 12. O-O-O {[%emt 0:03:30]} Bxe3 {[%emt 0:01:22]} 13. Bxe3 {[%emt 0:01:00]} Rxd1+ 14. Kxd1 {[%emt 0:00:02]} Nd7 {[%emt 0:02:16]} 15. Nd4 {[%emt 0:02:45]} Ndxe5 {[%emt 0:00:19]} 16. Nxe6 {[%emt 0:00:02]} Rxe6 {[%emt 0:00:02]} 17. Be2 {[%emt 0:00:01]} Rd6+ {[%emt 0:00:07]} 18. Kc1 {[%emt 0:01:01]} Nd4 {[%emt 0:00:17]} 19. Bxd4 {[%emt 0:01:12]} Rxd4 {[%emt 0:00:01]} 20. Rd1 {[%emt 0:00:02]} Rxd1+ {[%emt 0:00:06]} 21. Kxd1 {[%emt 0:00:02]} b6 {[%emt 0:00:24]} 22. Kd2 {[%emt 0:00:18]} Kd7 {[%emt 0:00:09]} 23. Ke3 {[%emt 0:00:07]} Kd6 {[%emt 0:00:18]} 24. b4 {[%emt 0:00:17]} Nc6 {[%emt 0:00:13]} 25. a3 {[%emt 0:00:05]} a5 {[%emt 0:00:03]} 26. b5 {[%emt 0:00:17]} Nd8 {[%emt 0:00:23]} 27. Bg4 {[%emt 0:00:19]} Kc5 {[%emt 0:00:13]} 28. Kd3 {[%emt 0:00:02]} f6 {[%emt 0:00:29]} 29. Bf5 {[%emt 0:00:27]} g6 {[%emt 0:01:54]} 30. Bd7 {[%emt 0:00:29]} g5 {[%emt 0:01:01]} 31. g3 {[%emt 0:00:02]} Kd6 {[%emt 0:00:15]} 32. Bf5 {[%emt 0:00:04]} h6 {[%emt 0:00:10]} 33. Kd4 {[%emt 0:00:21]} Nb7 {[%emt 0:00:34]} 34. f4 {[%emt 0:00:08]} Nc5 {[%emt 0:00:06]} 35. h4 {[%emt 0:00:12]} gxf4 {[%emt 0:00:08]} 36. gxf4 {[%emt 0:00:01]} Nb3+ {[%emt 0:00:36]} 37. Ke3 {[%emt 0:01:06]} Kc5 {[%emt 0:00:10]} 38. Be6 {[%emt 0:00:01]} Nd4 {[%emt 0:00:03]} 39. Bd7 {[%emt 0:00:29]} Kxc4 {[%emt 0:00:21]} 40. Ke4 {[%emt 0:00:01]} Kc5 {[%emt 0:00:11]} 41. h5 {[%emt 0:00:09]} Kc4 {[%emt 0:00:07]} 42. Be8 {[%emt 0:00:07]} Kc5 {[%emt 0:00:13]} 43. Bd7 {[%emt 0:00:02]} a4 {[%emt 0:00:05]} 44. Be8 {[%emt 0:00:02]} Nc2 {[%emt 0:00:16]} 45. Kf5 {[%emt 0:00:04]} Nxa3 {[%emt 0:00:09]} 46. Kxf6 {[%emt 0:00:02]} Nc4 {[%emt 0:00:01]} 47. Bg6 {[%emt 0:00:02]} Nd2 {[%emt 0:00:23]} 48. Bf7 {[%emt 0:00:13]} Nc4 {[%emt 0:00:09]} 49. Bg6 {[%emt 0:00:01]} Nd2 {[%emt 0:00:06]} 50. Bf7 {[%emt 0:00:01]} Nc4 {[%emt 0:00:15]} 51. Bg6 {[%emt 0:00:02]} a3 {[%emt 0:00:09]} 52. Bb1 {[%emt 0:00:02]} Kd4 {[%emt 0:00:10]} 53. Kg7 {[%emt 0:00:10]} Nd2 {[%emt 0:00:13]} 54. Ba2 {[%emt 0:00:01]} Ne4 {[%emt 0:00:05]} 55. f5 {[%emt 0:00:05]} Ke5 {[%emt 0:00:04]} 56. Kg6 {[%emt 0:00:08]} Nf6 {[%emt 0:00:09]} 57. Bb1 {[%emt 0:00:07]} Nd5 {[%emt 0:00:08]} 58. Ba2 {[%emt 0:00:14]} Nf4+ {[%emt 0:00:15]} 59. Kxh6 {[%emt 0:00:02]} Kxf5 {[%emt 0:00:07]} 60. Bb1+ {[%emt 0:00:02]} Kf6 {[%emt 0:00:01]} 61. Ba2 {[%emt 0:00:07]} Kf5 {[%emt 0:00:27]} 62. Bb1+ {[%emt 0:00:01]} Kf6 63. Ba2 Kf5 {[%emt 0:00:23]} 64. Bb1+ {[%emt 0:00:02]} Kf6 {[%emt 0:00:00]} 65. Ba2 {[%emt 0:00:00]} Ne2 {[%emt 0:00:13]} 66. Kh7 {[%emt 0:00:03]} Nc3 67. Bb3 {[%emt 0:00:15]} a2 {[%emt 0:00:14]} 68. Bxa2 {[%emt 0:00:02]} Nxa2 {[%emt 0:00:01]} 69. h6 {[%emt 0:00:02]} Kf7 {[%emt 0:00:27]} 70. Kh8 {[%emt 0:00:02]} Kf8 {[%emt 0:00:12]} 71. h7 {[%emt 0:00:01]} Kf7 {[%emt 0:00:01]} 1/2-1/2

[Event "Kupreichik Memorial Open 2018"]
[Site "Minsk"]
[Date "2018.06.23"]
[Round "10"]
[White "Sihite, Chelsie Monica Igne"]
[Black "Bernotas, Arturs"]
[Result "1/2-1/2"]
[ECO "B01"]
[WhiteElo "2236"]
[BlackElo "2407"]
[Annotator "NA"]
[PlyCount "95"]
[EventDate "2018.06.21"]
[EventCountry "BLR"]
[SourceTitle "playchess.com"]
[Source "ChessBase"]
[SourceQuality "1"]
[TimeControl "900+10"]

1. e4 {[%emt 0:00:00]} d5 {[%emt 0:00:04]} 2. exd5 {[%emt 0:00:03]} Nf6 {[%emt 0:00:03]} 3. Nf3 {[%emt 0:00:02]} Nxd5 {[%emt 0:00:05]} 4. Be2 {[%emt 0:00:03]} g6 {[%emt 0:00:04]} 5. O-O {[%emt 0:00:06]} Bg7 {[%emt 0:00:03]} 6. d4 {[%emt 0:00:02]} O-O {[%emt 0:00:04]} 7. h3 {[%emt 0:00:03]} c5 {[%emt 0:01:21]} 8. c3 {[%emt 0:02:08]} cxd4 {[%emt 0:00:24]} 9. Nxd4 {[%emt 0:00:03]} e5 {[%emt 0:00:18]} 10. Nc2 {[%emt 0:00:21]} Nc6 {[%emt 0:00:09]} 11. Bf3 {[%emt 0:02:35]} Be6 {[%emt 0:00:46]} 12. Qe2 {[%emt 0:01:09]} Qh4 {[%emt 0:01:08]} 13. Bxd5 {[%emt 0:00:32]} Bxd5 {[%emt 0:00:04]} 14. Ne3 {[%emt 0:00:01]} Be6 {[%emt 0:00:13]} 15. Nd2 {[%emt 0:00:12]} f5 {[%emt 0:00:12]} 16. Nf3 {[%emt 0:00:36]} Qh5 {[%emt 0:00:21]} 17. Re1 {[%emt 0:00:40]} e4 {[%emt 0:00:21]} 18. Nd2 {[%emt 0:01:00]} Qh4 {[%emt 0:00:18]} 19. Nef1 {[%emt 0:00:08]} Ne5 {[%emt 0:00:15]} 20. Nh2 {[%emt 0:00:50]} Nd3 {[%emt 0:00:23]} 21. Ndf3 {[%emt 0:00:37]} Qh5 {[%emt 0:02:17]} 22. Nd4 {[%emt 0:02:47]} Bxd4 {[%emt 0:00:25]} 23. cxd4 {[%emt 0:00:03]} Nxe1 {[%emt 0:00:24]} 24. Qxe1 {[%emt 0:00:01]} f4 {[%emt 0:01:34]} 25. d5 {[%emt 0:01:07]} Bxd5 {[%emt 0:00:48]} 26. b3 {[%emt 0:00:01]} Rac8 {[%emt 0:01:30]} 27. Ba3 {[%emt 0:00:05]} Rf7 {[%emt 0:00:19]} 28. Rc1 {[%emt 0:00:01]} Rxc1 {[%emt 0:01:30]} 29. Qxc1 {[%emt 0:00:06]} Bc6 {[%emt 0:00:04]} 30. Ng4 {[%emt 0:00:57]} e3 {[%emt 0:01:06]} 31. fxe3 {[%emt 0:00:21]} Qd5 {[%emt 0:00:07]} 32. Qb2 {[%emt 0:00:13]} h5 {[%emt 0:02:56]} 33. Nh6+ {[%emt 0:00:07]} Kh7 {[%emt 0:00:02]} 34. Nxf7 {[%emt 0:00:03]} Qxf7 {[%emt 0:00:02]} 35. exf4 {[%emt 0:00:35]} Qxf4 {[%emt 0:00:03]} 36. Qf2 {[%emt 0:00:49]} Qxf2+ {[%emt 0:00:18]} 37. Kxf2 {[%emt 0:00:02]} g5 {[%emt 0:00:04]} 38. g3 {[%emt 0:00:07]} Kg6 {[%emt 0:00:06]} 39. h4 {[%emt 0:00:06]} Be4 {[%emt 0:00:02]} 40. Be7 {[%emt 0:00:05]} gxh4 {[%emt 0:00:17]} 41. gxh4 {[%emt 0:00:02]} Kf5 {[%emt 0:00:02]} 42. Ke3 {[%emt 0:00:05]} Bb1 {[%emt 0:00:09]} 43. a3 {[%emt 0:00:05]} Ke5 {[%emt 0:00:13]} 44. b4 {[%emt 0:00:10]} Kd5 {[%emt 0:00:05]} 45. a4 {[%emt 0:00:10]} b6 {[%emt 0:01:00]} 46. a5 {[%emt 0:00:02]} Ke6 {[%emt 0:00:07]} 47. axb6 {[%emt 0:00:12]} axb6 {[%emt 0:00:05]} 48. Bd8 {[%emt 0:00:02]} 1/2-1/2

[Event "Kupreichik Memorial Open 2018"]
[Site "Minsk"]
[Date "2018.06.23"]
[Round "10"]
[White "Osmolny, Vladimir I"]
[Black "Vashchilov, Sergey"]
[Result "0-1"]
[ECO "A30"]
[WhiteElo "2211"]
[BlackElo "2087"]
[Annotator "NA"]
[PlyCount "76"]
[EventDate "2018.06.21"]
[EventCountry "BLR"]
[SourceTitle "playchess.com"]
[Source "ChessBase"]
[SourceQuality "1"]
[TimeControl "900+10"]

1. c4 {[%emt 0:00:00]} c5 {[%emt 0:00:02]} 2. Nf3 {[%emt 0:00:02]} Nc6 {[%emt 0:00:02]} 3. Nc3 {[%emt 0:00:07]} g6 {[%emt 0:00:24]} 4. e3 {[%emt 0:00:31]} Nf6 {[%emt 0:00:10]} 5. d4 {[%emt 0:00:02]} cxd4 {[%emt 0:00:14]} 6. exd4 {[%emt 0:00:02]} d5 {[%emt 0:00:03]} 7. cxd5 {[%emt 0:00:06]} Nxd5 {[%emt 0:00:01]} 8. Qb3 {[%emt 0:00:37]} Nxc3 {[%emt 0:00:53]} 9. Bc4 {[%emt 0:00:22]} Nd5 {[%emt 0:02:22]} 10. Bxd5 {[%emt 0:00:02]} e6 {[%emt 0:00:01]} 11. Bxc6+ bxc6 {[%emt 0:00:01]} 12. O-O {[%emt 0:00:24]} Bg7 {[%emt 0:00:21]} 13. Be3 {[%emt 0:02:09]} O-O {[%emt 0:01:58]} 14. Rfc1 {[%emt 0:00:15]} Qd6 {[%emt 0:00:49]} 15. Rc5 {[%emt 0:00:27]} Bd7 {[%emt 0:00:49]} 16. Rac1 {[%emt 0:00:24]} Rfb8 {[%emt 0:00:28]} 17. Qc2 {[%emt 0:00:06]} Rb5 {[%emt 0:02:48]} 18. Rc4 {[%emt 0:02:03]} a5 {[%emt 0:01:00]} 19. b3 {[%emt 0:00:45]} Be8 {[%emt 0:01:16]} 20. g3 {[%emt 0:02:36]} Rd8 {[%emt 0:01:14]} 21. Bf4 {[%emt 0:02:53]} Qd5 {[%emt 0:00:03]} 22. Qe2 {[%emt 0:00:02]} h6 {[%emt 0:00:20]} 23. h4 {[%emt 0:00:10]} Qh5 {[%emt 0:00:06]} 24. Qe3 {[%emt 0:00:18]} Rbd5 {[%emt 0:00:11]} 25. Kg2 {[%emt 0:00:22]} Kh7 {[%emt 0:00:22]} 26. Kh3 {[%emt 0:00:02]} g5 {[%emt 0:00:12]} 27. Bxg5 {[%emt 0:02:18]} hxg5 {[%emt 0:00:05]} 28. g4 {[%emt 0:00:24]} Qh6 {[%emt 0:00:50]} 29. Nxg5+ {[%emt 0:01:36]} Kg8 {[%emt 0:00:01]} 30. f4 {[%emt 0:00:38]} Bxd4 {[%emt 0:00:06]} 31. Qe4 {[%emt 0:00:08]} Bf6 {[%emt 0:00:09]} 32. Nf3 {[%emt 0:00:03]} Bxh4 {[%emt 0:00:16]} 33. Kg2 {[%emt 0:00:13]} f5 {[%emt 0:00:23]} 34. gxf5 {[%emt 0:00:08]} exf5 {[%emt 0:00:01]} 35. Qe2 {[%emt 0:00:08]} Bh5 {[%emt 0:01:16]} 36. Rxc6 {[%emt 0:00:15]} Qxf4 {[%emt 0:00:15]} 37. Qe6+ {[%emt 0:00:05]} Bf7 {[%emt 0:00:01]} 38. Rg1 {[%emt 0:00:26]} Bxe6 {[%emt 0:00:11]} 0-1

[Event "Kupreichik Memorial Open 2018"]
[Site "Minsk"]
[Date "2018.06.23"]
[Round "10"]
[White "Katashuk, Uladzislau"]
[Black "Terletsky, Oleg"]
[Result "0-1"]
[ECO "A03"]
[WhiteElo "2149"]
[BlackElo "2257"]
[Annotator "NA"]
[PlyCount "64"]
[EventDate "2018.06.21"]
[EventCountry "BLR"]
[SourceTitle "playchess.com"]
[Source "ChessBase"]
[SourceQuality "1"]
[TimeControl "900+10"]

1. f4 {[%emt 0:00:00]} d5 {[%emt 0:00:06]} 2. Nf3 {[%emt 0:00:00]} g6 {[%emt 0:00:01]} 3. g3 {[%emt 0:00:00]} Bg7 {[%emt 0:00:05]} 4. Bg2 {[%emt 0:00:00]} c5 {[%emt 0:00:08]} 5. O-O {[%emt 0:00:00]} Nc6 {[%emt 0:00:04]} 6. d3 {[%emt 0:00:00]} Nf6 {[%emt 0:00:05]} 7. Nc3 {[%emt 0:00:02]} O-O {[%emt 0:01:58]} 8. Ne5 {[%emt 0:00:01]} Be6 {[%emt 0:02:19]} 9. e4 {[%emt 0:00:54]} dxe4 {[%emt 0:00:30]} 10. Nxc6 {[%emt 0:00:04]} bxc6 {[%emt 0:00:03]} 11. Nxe4 {[%emt 0:02:46]} Nxe4 {[%emt 0:00:22]} 12. Bxe4 {[%emt 0:00:19]} Bd5 {[%emt 0:00:24]} 13. Qe2 {[%emt 0:00:52]} Rb8 {[%emt 0:00:56]} 14. c3 {[%emt 0:00:31]} f5 {[%emt 0:03:03]} 15. Bg2 {[%emt 0:00:39]} Bxg2 {[%emt 0:00:12]} 16. Kxg2 {[%emt 0:00:09]} e5 {[%emt 0:00:18]} 17. fxe5 {[%emt 0:00:24]} Qd5+ {[%emt 0:00:02]} 18. Rf3 {[%emt 0:00:52]} Bxe5 {[%emt 0:00:15]} 19. Be3 {[%emt 0:01:46]} Rfe8 {[%emt 0:00:10]} 20. Qf2 {[%emt 0:01:57]} Qxd3 {[%emt 0:04:03]} 21. Bxc5 {[%emt 0:00:10]} Qb5 {[%emt 0:00:01]} 22. b4 {[%emt 0:00:21]} Bxc3 {[%emt 0:00:23]} 23. a4 {[%emt 0:00:45]} Qc4 {[%emt 0:00:34]} 24. Ra2 {[%emt 0:05:07]} Bxb4 {[%emt 0:00:41]} 25. Bxa7 {[%emt 0:00:19]} Rbd8 {[%emt 0:00:38]} 26. Rf4 {[%emt 0:01:00]} Qd5+ {[%emt 0:00:05]} 27. Kh3 {[%emt 0:00:01]} c5 {[%emt 0:00:51]} 28. Bb6 {[%emt 0:00:10]} Rd6 {[%emt 0:00:25]} 29. a5 {[%emt 0:00:13]} g5 {[%emt 0:00:48]} 30. Rxf5 {[%emt 0:00:00]} Rh6+ {[%emt 0:00:02]} 31. Kg4 {[%emt 0:00:01]} Qe4+ {[%emt 0:00:05]} 32. Rf4 {[%emt 0:00:09]} gxf4 {[%emt 0:00:09]} 0-1

[Event "Kupreichik Memorial Open 2018"]
[Site "Minsk"]
[Date "2018.06.23"]
[Round "10"]
[White "Savolainen, Lev P"]
[Black "Tsaruk, Maksim"]
[Result "0-1"]
[ECO "E19"]
[WhiteElo "2053"]
[BlackElo "1980"]
[Annotator "NA"]
[PlyCount "98"]
[EventDate "2018.06.21"]
[EventCountry "BLR"]
[SourceTitle "playchess.com"]
[Source "ChessBase"]
[SourceQuality "1"]
[TimeControl "900+10"]

1. d4 {[%emt 0:00:00]} Nf6 {[%emt 0:00:04]} 2. c4 {[%emt 0:00:00]} e6 {[%emt 0:00:08]} 3. Nf3 {[%emt 0:00:00]} b6 {[%emt 0:00:04]} 4. g3 {[%emt 0:00:20]} Bb7 {[%emt 0:00:06]} 5. Bg2 {[%emt 0:00:02]} Be7 {[%emt 0:00:45]} 6. O-O {[%emt 0:00:10]} O-O {[%emt 0:00:04]} 7. Nc3 {[%emt 0:00:32]} Ne4 {[%emt 0:00:04]} 8. Qc2 {[%emt 0:00:10]} Nxc3 {[%emt 0:00:26]} 9. Qxc3 {[%emt 0:00:02]} d6 {[%emt 0:00:32]} 10. b4 {[%emt 0:01:51]} Nd7 {[%emt 0:00:16]} 11. Bb2 {[%emt 0:00:46]} f5 {[%emt 0:01:05]} 12. Rfd1 {[%emt 0:01:38]} Bf6 {[%emt 0:00:21]} 13. Qd2 {[%emt 0:03:33]} Qe7 {[%emt 0:00:19]} 14. Rac1 {[%emt 0:01:29]} Rad8 {[%emt 0:01:54]} 15. d5 {[%emt 0:01:03]} e5 {[%emt 0:01:11]} 16. Qc2 {[%emt 0:01:36]} g6 {[%emt 0:00:36]} 17. Ba3 {[%emt 0:00:44]} Rf7 {[%emt 0:01:39]} 18. c5 {[%emt 0:00:10]} bxc5 {[%emt 0:00:03]} 19. bxc5 {[%emt 0:00:01]} Nxc5 {[%emt 0:00:01]} 20. Bxc5 {[%emt 0:00:08]} dxc5 {[%emt 0:00:01]} 21. Qxc5 {[%emt 0:00:01]} Qxc5 {[%emt 0:00:01]} 22. Rxc5 {[%emt 0:00:02]} Rfd7 {[%emt 0:02:36]} 23. Ra5 {[%emt 0:01:29]} e4 {[%emt 0:01:15]} 24. Ne1 {[%emt 0:00:16]} a6 {[%emt 0:01:23]} 25. f3 {[%emt 0:00:40]} Rxd5 {[%emt 0:00:17]} 26. Raxd5 {[%emt 0:00:42]} Rxd5 {[%emt 0:00:01]} 27. Rc1 {[%emt 0:00:38]} Rc5 {[%emt 0:00:25]} 28. Rxc5 {[%emt 0:00:38]} Bd4+ {[%emt 0:00:01]} 29. Kf1 {[%emt 0:00:00]} Bxc5 {[%emt 0:00:01]} 30. fxe4 {[%emt 0:00:02]} fxe4 {[%emt 0:00:01]} 31. Nc2 {[%emt 0:00:16]} Bd5 {[%emt 0:00:18]} 32. e3 {[%emt 0:00:03]} Kg7 {[%emt 0:02:10]} 33. Ke2 {[%emt 0:00:30]} Bxa2 {[%emt 0:01:09]} 34. Bxe4 {[%emt 0:00:05]} a5 {[%emt 0:00:47]} 35. Bc6 {[%emt 0:00:27]} Bb3 {[%emt 0:00:11]} 36. Na1 {[%emt 0:00:44]} Bc4+ {[%emt 0:00:15]} 37. Kd2 {[%emt 0:00:02]} Kf6 {[%emt 0:00:09]} 38. Kc3 {[%emt 0:00:15]} Be6 {[%emt 0:00:01]} 39. Nc2 {[%emt 0:00:02]} Ke5 {[%emt 0:00:21]} 40. Nd4 {[%emt 0:00:16]} Bxd4+ {[%emt 0:00:31]} 41. exd4+ {[%emt 0:00:02]} Kd6 {[%emt 0:00:00]} 42. Ba4 {[%emt 0:00:06]} Bd5 {[%emt 0:00:07]} 43. h4 {[%emt 0:00:16]} Ke6 {[%emt 0:00:18]} 44. Bc2 {[%emt 0:00:03]} Kf6 {[%emt 0:00:06]} 45. g4 {[%emt 0:00:20]} h6 {[%emt 0:00:17]} 46. Bd1 {[%emt 0:00:09]} g5 {[%emt 0:00:05]} 47. h5 {[%emt 0:00:15]} Ke7 {[%emt 0:00:04]} 48. Kd3 {[%emt 0:00:14]} a4 {[%emt 0:00:14]} 49. Bxa4 {[%emt 0:00:02]} Bf3 0-1